Cogmind - Beta 11 @@@ ROGUE MODE // 2022.04.22 @ 15:09:34 Player: RNGesus Result: Self-destructed Performance ------------- Evolutions (3) 1500 Regions Visited (7) 1400 Robots Destroyed (114) 570 Value Destroyed (3485) 3485 Prototype IDs (34) 680 Alien Tech Used (0) 0 Bonus (809) 809 TOTAL SCORE: 8444 Bonus ------- High Alert Combat Kills 163 Follower Combat Kills 477 Aligned with FarCom 300 Friendly Fire -131 Cogmind --------- Core Integrity 170/700 Matter 7/300 Energy 85/100 System Corruption 3% Temperature Warm (199) Movement Core (1350) Ox26 Location -7/Factory Parts ------- > --- POWER (1) -------- (None) > --- PROPULSION (4) --- (None) > --- UTILITY (6) ------ Huge Storage Unit Transport Network Coupler > --- WEAPON (2) ------- (None) > --- INVENTORY (25) --- Light Nuclear Core Improved VTOL Module Improved VTOL Module Improved VTOL Module Improved VTOL Module Improved VTOL Module Improved Heat Sink Experimental Sensor Array Active Sensor Suite Cloak of Protection Graphene Brace Hacking Suite Hacking Suite Precision Beam Rifle Precision Beam Rifle Enhanced Autogun Gauss Rifle Shock Bomb Launcher Field Lobotomy Kit (5) Plasma Cutter Great Maul Peak State ------------ > --- POWER ------------ Reinforced Deuterium Engine > --- PROPULSION ------- Armored Treads Armored Treads Armored Treads Cooled VTOL Module > --- UTILITY ---------- Improved Heat Sink Huge Storage Unit Experimental Sensor Array Seismic Detector Reactive Plating Reactive Plating > --- WEAPON ----------- Precision Beam Rifle Gauss Rifle > --- INVENTORY -------- Light Nuclear Core Armored Treads Improved VTOL Module Improved VTOL Module Improved VTOL Module Improved VTOL Module Improved VTOL Module Active Sensor Suite Transport Network Coupler Cloak of Protection Light Armor Plating Graphene Brace Hacking Suite Hacking Suite Precision Beam Rifle Autogun Enhanced Autogun Gauss Rifle EMP Blaster Missile Launcher Field Lobotomy Kit Plasma Cutter Great Maul [Rating: 57] Favorites ----------- Power Ion Engine Engine Ion Engine Power Core Light Nuclear Core Propulsion Light Treads Treads Light Treads Wheel Compact Wheel Flight Unit Improved VTOL Module Utility Huge Storage Unit Device Cooling System Storage Huge Storage Unit Processor Improved Targeting Computer Protection Reactive Plating Weapon Assault Rifle Energy Gun Precision Beam Rifle Ballistic Gun Assault Rifle Launcher Mini Grenade Launcher Impact Weapon Great Maul Build | -11 -10 -10 -10 -9 -8 -8 -7 ------- Run | Scr Mat Min Exi Min Mat Sto Fac Slots Evolved 6 | . . . . . 4 . 2 Power . | . . . . . . . . Propulsion 2 | . . . . . 2 . . Utility 4 | . . . . . 2 . 2 Weapon . | . . . . . . . . Parts Attached 102 | 6 8 3 . 3 44 16 22 Power 5 | 1 . 1 . 1 2 . . Engine 4 | 1 . 1 . . 2 . . Core 1 | . . . . 1 . . . Reactor . | . . . . . . . . Propulsion 29 | 2 4 . . . 13 8 2 Treads 24 | 2 3 . . . 10 8 1 Leg . | . . . . . . . . Wheel 3 | . 1 . . . 2 . . Hover . | . . . . . . . . Flight 2 | . . . . . 1 . 1 Utility 25 | 1 3 1 . . 10 2 8 Device 6 | . . . . . 2 . 4 Storage 3 | 1 2 . . . . . . Processor 4 | . . . . . 2 . 2 Hackware . | . . . . . . . . Protection 12 | . 1 1 . . 6 2 2 Artifact . | . . . . . . . . Weapon 43 | 2 1 1 . 2 19 6 12 Energy Gun 4 | 1 . . . . 2 1 . Energy Cannon . | . . . . . . . . Ballistic Gun 24 | 1 1 1 . 2 12 2 5 Ballistic Cannon . | . . . . . . . . Launcher 10 | . . . . . 5 1 4 Special Weapon . | . . . . . . . . Impact Weapon 5 | . . . . . . 2 3 Slashing Weapon . | . . . . . . . . Piercing Weapon . | . . . . . . . . Special Melee Weapon . | . . . . . . . . Unidentified Prototypes 7 | . . . . . 4 . 3 Parts Lost 23 | . 1 2 . . 7 1 12 Power 2 | . . 1 . . . . 1 Propulsion 9 | . . . . . 5 . 4 Utility 7 | . 1 . . . 1 1 4 Weapon 5 | . . 1 . . 1 . 3 Highest Loss Streak 11 | . 1 1 . . 6 1 11 To Critical Strikes . | . . . . . . . . Average Slot Usage (%) 93 | . 88 93 73 91 97 99 98 Engine 8 | . 14 14 14 8 3 9 6 Core 1 | . . . . 5 5 . . Treads 24 | . 21 14 14 14 31 33 29 Wheel 5 | . 6 14 14 14 2 1 . Device 6 | . . . . . 8 9 17 Storage 11 | . 15 14 14 14 9 9 7 Processor 1 | . . . . . 4 . 4 Protection 11 | . 1 7 14 14 12 17 15 Energy Gun 4 | . 13 . . . . 8 3 Ballistic Gun 14 | . 14 28 2 19 17 8 8 Naked Turns . | . . . . . . . . Heaviest Build 128 | 13 108 97 97 97 122 123 128 Greatest Support 83 | 40 46 16 16 16 83 80 80 Greatest Overweight (x) 7 | . 5 6 6 6 7 7 1 Average Overweight (x) 3 | . 2 5 5 5 2 2 1 Largest Inventory Capacity 25 | 8 25 25 25 25 25 25 25 Average Capacity 23 | 6 16 25 25 25 25 25 25 Most Carried 25 | 2 25 25 25 25 25 25 25 Average Carried 22 | 1 12 23 24 24 24 24 24 Final Capacity 25 | 8 25 25 25 25 25 25 25 Final Carried 25 | 2 23 23 25 25 25 25 23 Class Distribution -------------------- 71% | Mutant 24% | Scavenger-Mutant 3% | Commander-Mutant Dominant Class ---------------- Mutant | -10/Materials Mutant | -10/Mines Mutant | -10/Exiles Mutant | -9/Mines Scavenger-Mutant | -8/Materials Mutant | -8/Storage Mutant | -7/Factory Resources | -11 -10 -10 -10 -9 -8 -8 -7 ----------- Run | Scr Mat Min Exi Min Mat Sto Fac Matter Collected 2629 | 260 268 147 . 135 1199 450 170 Remotely . | . . . . . . . . Salvage Created 4465 | . 772 103 . 110 1661 1134 685 Parts 254 | . 44 5 . 4 111 45 45 Haulers Intercepted 9 | . 2 . . . 5 2 . Recyclers Shooed 6 | . 3 . . . 2 . 1 Parts Field Recycled . | . . . . . . . . Retrieved Matter . | . . . . . . . . Parts Self-Destructed . | . . . . . . . . Prevented . | . . . . . . . . Kills | -11 -10 -10 -10 -9 -8 -8 -7 ------- Run | Scr Mat Min Exi Min Mat Sto Fac Combat Hostiles Destroyed 84 | . 11 6 . 1 32 18 16 Guns 57 | . 11 6 . 1 16 18 5 AOE 26 | . . . . . 16 . 10 Classes Destroyed 18 | . 8 1 . 1 5 1 2 Worker 9 | . 4 1 . . 2 1 1 Builder 7 | . 1 1 . . 3 . 2 Hauler 9 | . 2 . . . 5 2 . Recycler 6 | . 2 . . . 3 . 1 Operator 3 | . 1 . . . 1 1 . Watcher 1 | . 1 . . . . . . Swarmer 10 | . 3 . . . 7 . . Cutter 2 | . . . . . 2 . . Grunt 35 | . 8 . . . 13 9 5 Brawler 3 | . . . . . . 3 . Duelist 3 | . . . . 1 . 2 . Protector 3 | . . . . . . . 3 Sentry 11 | . . . . . 6 4 1 Specialist 4 | . . . . . 2 . 2 Hunter 4 | . . . . . 1 1 2 Programmer 3 | . . . . . . . 3 Heavy 1 | . . . . . 1 . . Assembled 6 | . . 6 . . . . . Best Kill Streak 12 | . 4 2 . 1 8 8 12 Combat Bots Only 8 | . 3 2 . 1 7 8 8 Max Kills in Single Turn 6 | . 1 1 . 1 4 1 6 Gunslinging . | . . . . . . . . Exploded 5 | . . . . . 3 . 5 Melee . | . . . . . . . . Uniques/NPCs Destroyed . | . . . . . . . . Combat | -11 -10 -10 -10 -9 -8 -8 -7 -------- Run | Scr Mat Min Exi Min Mat Sto Fac Damage Taken 6568 | . 610 195 . . 2025 1323 2415 Core 1097 | . 81 . . . 315 171 530 Absorbed by Shields . | . . . . . . . . Core Remaining (%) 59 | 100 . . . 67 . 11 . Volleys Fired 310 | . 67 18 . 7 102 75 41 Largest 2 | . 2 2 . 2 2 2 2 Hottest 89 | . 60 43 . 43 53 89 89 Shots Fired 584 | . 133 35 . 14 187 150 65 Gun 554 | . 133 35 . 14 174 150 48 Cannon . | . . . . . . . . Launcher 30 | . . . . . 13 . 17 Special . | . . . . . . . . Kinetic 397 | . 67 35 . 14 174 75 32 Thermal 157 | . 66 . . . . 75 16 Explosive 23 | . . . . . 13 . 10 Electromagnetic 7 | . . . . . . . 7 Robot Hit Streak 21 | . 18 7 . 6 14 20 21 Robot Miss Streak 5 | . 5 5 . 2 5 2 3 Penetration Max 1 | . . . . . 1 1 . Secondary Targets 6 | . . . . . 1 5 . Max Gunslinging Chain 1 | . . . . . 1 1 . Shots Hit Robots 411 | . 93 20 . 8 124 116 50 Core Hits 235 | . 38 12 . 4 80 43 58 Critical Kills 4 | . . . . . 1 2 1 Critical Parts Destroyed 6 | . . . . . 3 . 3 Critical Strikes 23 | . . . . . 4 14 5 Burn 13 | . . . . . . 12 1 Destroy 8 | . . . . . 4 2 2 Smash 2 | . . . . . . . 2 Melee Attacks 17 | . . . . . . 4 13 Impact 17 | . . . . . . 4 13 Slashing . | . . . . . . . . Piercing . | . . . . . . . . Sneak Attacks . | . . . . . . . . Combat Hostiles . | . . . . . . . . Follow-up Attacks . | . . . . . . . . Damage Inflicted 10230 | . 1170 270 . 109 3562 2312 2807 Guns 6476 | . 1170 270 . 109 2076 2300 551 Cannons . | . . . . . . . . Explosions 3432 | . . . . . 1479 . 1953 Melee 303 | . . . . . . . 303 Ramming 19 | . . . . . 7 12 . Kinetic 4614 | . 613 270 . 109 2076 1193 353 Thermal 1862 | . 557 . . . . 1107 198 Explosive 2883 | . . . . . 1479 . 1404 Electromagnetic 549 | . . . . . . . 549 Impact 303 | . . . . . . . 303 Slashing . | . . . . . . . . Piercing . | . . . . . . . . Highest Corruption 5 | . . 5 5 5 . 1 3 Average Corruption 3 | . . 5 5 5 . 1 1 Corruption Purged . | . . . . . . . . Corruption Blocked 8 | . . . . . . . 8 Effects 48 | . . 2 17 20 . 4 5 Message Errors 16 | . . . 4 11 . 1 . Matter Fused 10 | . . 1 7 1 . . 1 Heat Flow Errors 10 | . . 1 2 2 . 3 2 Energy Discharges 3 | . . . 1 1 . . 1 Data Loss (minor) 6 | . . . 1 4 . . 1 Data Loss (major) 1 | . . . 1 . . . . Alerts 2 | . . . 1 1 . . . Overload Shots . | . . . . . . . . Overflow Damage 249 | . . . . . 96 . 153 Projectiles . | . . . . . . . . Explosions 135 | . . . . . 96 . 39 Melee 114 | . . . . . . . 114 Knockbacks . | . . . . . . . . Impact . | . . . . . . . . Kinetic . | . . . . . . . . Secondary . | . . . . . . . . Self-Inflicted Damage 82 | . . . . . 54 . 28 Shots 5 | . . . . . 2 . 3 Rammed 2 | . . . . . 1 1 . Targets Rammed 2 | . . . . . 1 1 . Kicked . | . . . . . . . . Crushed . | . . . . . . . . Highest Temperature 249 | . 168 134 244 181 144 193 249 Average Temperature 42 | . 39 43 102 56 31 37 55 Received Heat Transfer 1569 | . 294 69 . . 621 414 171 Siege Activations . | . . . . . . . . Robots Corrupted . | . . . . . . . . Combat Hostiles . | . . . . . . . . Parts Fried 2 | . . . . . . . 2 Impact Corruptions 6 | . . . . . . . 6 Robots Melted . | . . . . . . . . Combat Hostiles . | . . . . . . . . Parts Melted 8 | . 1 . . . . 7 . Heat Transferred 4962 | . 1225 . . . . 3256 481 Parts Sabotaged . | . . . . . . . . Parts Stolen . | . . . . . . . . Parts Stripped . | . . . . . . . . Power Chain Reactions . | . . . . . . . . Missiles Intercepted . | . . . . . . . . Alert | -11 -10 -10 -10 -9 -8 -8 -7 ------- Run | Scr Mat Min Exi Min Mat Sto Fac Peak Influence 599 | . 209 59 . 37 521 599 307 Initial 272 | . . 6 . . . 219 272 Average 168 | . 47 9 . 11 260 383 153 Maximum Alert Level 2 | . 1 . . . 2 2 1 Low Security (%) 59 | 100 99 100 . 100 26 . 72 Level 1 30 | . . . . . 60 62 27 Level 2 9 | . . . . . 13 37 . Level 3 . | . . . . . . . . Level 4 . | . . . . . . . . Level 5 . | . . . . . . . . High Security . | . . . . . . . . Max Security . | . . . . . . . . Squads Dispatched 18 | . 2 . . . 5 4 7 Investigation 2 | . 1 . . . . . 1 Extermination 1 | . . . . . . . 1 Reinforcement 13 | . 1 . . . 5 2 5 Assault 2 | . . . . . . 2 . Garrison . | . . . . . . . . Intercept . | . . . . . . . . Searches Triggered . | . . . . . . . . Construction Impeded 1 | . . . . . . . 1 Haulers Reinforced 2 | . . . . . . . 2 Active Scanning Responses . | . . . . . . . . Cargo Convoy Interrupts 1 | . . . . . . . 1 Stealth | -11 -10 -10 -10 -9 -8 -8 -7 --------- Run | Scr Mat Min Exi Min Mat Sto Fac Distress Signals 9 | . 1 . . . 5 3 . Communications Jammed . | . . . . . . . . Distress Signals . | . . . . . . . . Times Spotted 156 | . 22 12 . 3 55 35 29 Peak Tracking Total 13 | . 4 7 . 3 6 6 13 Tactical Retreats 5 | . . . . . . 1 4 Traps | -11 -10 -10 -10 -9 -8 -8 -7 ------- Run | Scr Mat Min Exi Min Mat Sto Fac Traps Triggered 3 | . 1 . . . . 1 1 Indirectly . | . . . . . . . . Trap Hack Attempts . | . . . . . . . . Triggered . | . . . . . . . . Disarmed . | . . . . . . . . Reprogrammed . | . . . . . . . . Reused . | . . . . . . . . Traps Extracted . | . . . . . . . . Installed . | . . . . . . . . Triggered . | . . . . . . . . Machines | -11 -10 -10 -10 -9 -8 -8 -7 ---------- Run | Scr Mat Min Exi Min Mat Sto Fac Machines Disabled 9 | . . . . . 4 2 3 Max in Single Turn 2 | . . . . . 1 1 2 Garrison Access 3 | . . . . . 1 1 1 Machines Sabotaged . | . . . . . . . . Garrisons Compromised . | . . . . . . . . Overloaded Fab Kills . | . . . . . . . . Hacking | -11 -10 -10 -10 -9 -8 -8 -7 --------- Run | Scr Mat Min Exi Min Mat Sto Fac Machines Accessed 20 | . 6 . 2 . 5 4 3 Terminals 11 | . 5 . . . 3 3 . Fabricators . | . . . . . . . . Repair Stations 1 | . 1 . . . . . . Recycling Units . | . . . . . . . . Scanalyzers 3 | . . . . . 1 . 2 Garrison Access 3 | . . . . . 1 1 1 Total Hacks 58 | . 16 . 5 . 13 11 13 Successful 31 | . 4 . 5 . 7 5 10 Failed 26 | . 11 . . . 6 6 3 Catastrophic 2 | . . . . . . 2 . Database Lockouts 1 | . 1 . . . . . . Manual 29 | . 16 . 1 . 7 5 . Terminals 32 | . 14 . . . 10 8 . Fabricators . | . . . . . . . . Repair Stations 2 | . 2 . . . . . . Recycling Units . | . . . . . . . . Scanalyzers 14 | . . . . . 2 . 12 Garrison Access 5 | . . . . . 1 3 1 Terminal Hacks 18 | . 3 . 5 . 6 4 . Record 4 | . . . 4 . . . . Part Schematic 1 | . 1 . . . . . . Robot Analysis 3 | . 2 . . . 1 . . Prototype ID Bank 2 | . . . . . 2 . . Open Door 1 | . . . . . . 1 . Branch Access Points 1 | . . . . . 1 . . Terminal Index 1 | . . . . . . 1 . Alert Level 1 | . . . . . . 1 . Locate Traps 2 | . . . . . 1 1 . Hauler Manifests 1 | . . . . . 1 . . EX-Prototype ID Bank 1 | . . . 1 . . . . Fabricator Hacks . | . . . . . . . . Repair Station Hacks . | . . . . . . . . Recycling Unit Hacks . | . . . . . . . . Scanalyzer 9 | . . . . . . . 9 Insert Component 5 | . . . . . . . 5 Analyze 4 | . . . . . . . 4 Garrison Access Hacks 3 | . . . . . 1 1 1 Seal Access 3 | . . . . . 1 1 1 Unauthorized Hacks 1 | . 1 . . . . . . Terminals . | . . . . . . . . Fabricators . | . . . . . . . . Repair Stations 1 | . 1 . . . . . . Mechanics 1 | . 1 . . . . . . Recycling Units . | . . . . . . . . Scanalyzers . | . . . . . . . . Garrison Access . | . . . . . . . . Data Cores Recovered . | . . . . . . . . Used . | . . . . . . . . Hacking Detections 12 | . 4 . . . 4 3 1 Full Trace Events 1 | . 1 . . . . . . Feedback Events . | . . . . . . . . Feedback Blocked . | . . . . . . . . Robot Schematics Acquired . | . . . . . . . . Robots Built . | . . . . . . . . Authchips . | . . . . . . . . Time . | . . . . . . . . Total Robot Build Rating . | . . . . . . . . Part Schematics Acquired 4 | . 1 . . . . . 3 Parts Built . | . . . . . . . . Authchips . | . . . . . . . . Time . | . . . . . . . . Total Part Build Rating . | . . . . . . . . Parts Repaired . | . . . . . . . . Time . | . . . . . . . . Parts Recycled . | . . . . . . . . Recycled Matter . | . . . . . . . . Retrieved Matter . | . . . . . . . . Retrieved Components . | . . . . . . . . Parts Scanalyzed 4 | . . . . . . . 4 Part Schematics Acquired 3 | . . . . . . . 3 Parts Damaged . | . . . . . . . . Bothacking | -11 -10 -10 -10 -9 -8 -8 -7 ------------ Run | Scr Mat Min Exi Min Mat Sto Fac Used RIF Installer . | . . . . . . . . Robots Hacked . | . . . . . . . . Non-combat . | . . . . . . . . Combat . | . . . . . . . . Robot Hacks Applied . | . . . . . . . . Relay Couplers Released . | . . . . . . . . Fabnet Peak Effective % . | . . . . . . . . Robots Rewired . | . . . . . . . . Allies Hacked . | . . . . . . . . Hacks Repelled . | . . . . . . . . Allies | -11 -10 -10 -10 -9 -8 -8 -7 -------- Run | Scr Mat Min Exi Min Mat Sto Fac Total Allies 14 | . . 4 . . . 10 . Largest Group 10 | . . 3 3 3 1 10 . Highest-Rated Group 173 | . . 40 40 40 14 173 . Highest-Rated Ally 31 | . . 31 16 16 14 29 . Total Orders . | . . . . . . . . Ally Attacks 106 | . . 7 . 12 . 87 . Total Damage 1305 | . . 148 . 94 . 1063 . Kills 16 | . . 2 . 3 . 11 . Allies Corrupted . | . . . . . . . . Allies Melted . | . . . . . . . . Intel | -11 -10 -10 -10 -9 -8 -8 -7 ------- Run | Scr Mat Min Exi Min Mat Sto Fac Robot Analysis Total 3 | . 2 . . . 1 . . Derelict Logs Recovered 3 | . . 1 . 2 . . . Drone Launches . | . . . . . . . . Drone Recoveries . | . . . . . . . . Exploration | -11 -10 -10 -10 -9 -8 -8 -7 ------------- Run | Scr Mat Min Exi Min Mat Sto Fac Turns Passed 9295 | 93 1481 884 681 1020 2228 1429 1479 Spaces Moved 3961 | 54 725 447 385 536 822 473 519 Core 3 | 3 . . . . . . . Treads 1907 | 51 381 . . . 578 378 519 Legs . | . . . . . . . . Wheels 2051 | . 344 447 385 536 244 95 . Hover . | . . . . . . . . Flight . | . . . . . . . . Fastest Speed 50 | 50 160 175 175 175 150 190 250 Average Speed 203 | 153 170 180 175 185 222 241 250 Slowest Speed 410 | 160 320 190 190 190 240 410 250 Overloaded Moves . | . . . . . . . . Propulsion Burnouts . | . . . . . . . . Robots Hopped . | . . . . . . . . Cave-ins Triggered . | . . . . . . . . Exploration Rate (%) 64 | 4 93 96 71 98 60 77 18 Regions Visited 7 Branch Regions 4 Pre-discovered Areas 2 | . . . 1 1 . . . Known Exits Taken 1 | . . . . . 1 . . Unknown Exits Taken 6 | 1 1 1 1 1 . 1 . Scrap Searched 4 | . . 2 . 2 . . . Spaces Dug 24 | . . . . . 18 3 3 Terrain Destroyed 135 | . . . . . 80 3 52 Melee 6 | . . . . . . 3 3 Projectile 3 | . . . . . 1 . 2 AOE 126 | . . . . . 79 . 47 Terrain Rammed . | . . . . . . . . Walls Destroyed . | . . . . . . . . Machines Disabled . | . . . . . . . . Actions | -11 -10 -10 -10 -9 -8 -8 -7 --------- Run | Scr Mat Min Exi Min Mat Sto Fac Total 4636 | 61 844 490 391 553 1065 624 608 Wait 98 | . 9 18 1 2 30 38 . Move 3954 | 53 724 446 384 535 821 472 519 Hop . | . . . . . . . . Pick Up 72 | 2 25 4 2 2 27 6 4 Fast Attach 35 | 6 3 . . 2 15 4 5 Attach 22 | . 2 3 . 1 9 1 6 Detach 10 | . 2 . 2 1 3 . 2 Swap 45 | . 3 . . . 20 11 11 Drop 70 | . 9 1 2 2 37 12 7 Fire 310 | . 67 18 . 7 102 75 41 Melee 17 | . . . . . . 4 13 Ram 1 | . . . . . 1 . . Kick . | . . . . . . . . Crush 1 | . . . . . . 1 . Escape Stasis . | . . . . . . . . Rewire 1 | . . . . 1 . . . Trap . | . . . . . . . . Miscellaneous . | . . . . . . . . Route ------- -11/Scrapyard -10/Materials (discovered 4 exits: [*Mat x3] / [*Min]) -10/Mines (discovered 3 exits: [*Mat x2] / *Exi) -10/Exiles -9/Mines (discovered 2 exits: *Mat x2) -8/Materials (discovered 2 exits: *Sto x2) -8/Storage -7/Factory (discovered 1 exit: Low) History --------- Turn | Location | Event 47 | -11/Scrapyard | Discovered new exit (range 16) 94 | -11/Scrapyard | Entered Materials 274 | -10/Materials | Discovered new exit (range 7) 324 | -10/Materials | Build established: Mutant 561 | -10/Materials | Discovered new exit (range 9) 1372 | -10/Materials | Discovered new exit (range 13) 1468 | -10/Materials | Central database locked down 1527 | -10/Materials | Discovered new exit (range 11) 1575 | -10/Materials | Entered Mines 1650 | -10/Mines | Received a Mining Laser from a helpful Derelict 1696 | -10/Mines | Learned Materials interactive machine intel 1866 | -10/Mines | Discovered new exit (range 5) 1953 | -10/Mines | Assembled infested the area 1958 | -10/Mines | Assisted by a Guerilla fighting off Assembled 2013 | -10/Mines | Found a damaged Exp. Sensor Array with a note attached 2017 | -10/Mines | Found Prototype Device 2034 | -10/Mines | Discovered new exit (range 8) 2048 | -10/Mines | Joined a pair of Derelicts in attacking an 0b10 outpost 2402 | -10/Mines | Assisted by bots powering up and referring to "LRC-V3" 2449 | -10/Mines | Deemed a non-threat by the Exiles lab entrance 2449 | -10/Mines | Discovered new exit (range 5) 2459 | -10/Mines | Entered Exiles 2459 | -10/Exiles | Accompanied by 3 allies 2503 | -10/Exiles | Met 8R-AWN 2536 | -10/Exiles | Met EX-HEX 2585 | -10/Exiles | Met EX-BIN 2609 | -10/Exiles | Aligned with FarCom system 2611 | -10/Exiles | Given EX-Vault access code 2653 | -10/Exiles | Opened EX-Vault 2666 | -10/Exiles | Found Cloak of Protection 2671 | -10/Exiles | Found Field Lobotomy Kit 2710 | -10/Exiles | Warned to stay clear of 0b10 Research branches 2766 | -10/Exiles | Met EX-DEC 2952 | -10/Exiles | Learned location of Zion (-6) 3118 | -10/Exiles | Discovered new exit (range 14) 3140 | -10/Exiles | Stole two prototypes: Cloak of Protection, Field Lobotomy Kit 3140 | -10/Exiles | Entered Mines 3140 | -9/Mines | Accompanied by 3 allies 3149 | -9/Mines | Learned Materials stockpile data 3162 | -9/Mines | Met a Derelict bent on vengeance 3308 | -9/Mines | Discovered new exit (range 9) 3631 | -9/Mines | Discovered new exit (range 6) 3670 | -9/Mines | Learned location of Storage (-8) 4160 | -9/Mines | Entered Materials 4160 | -8/Materials | Accompanied by 1 ally 4160 | -8/Materials | Evolved 4 slots: Propulsion x2, Utility x2 4162 | -8/Materials | Loaded intel: 19 interactive machine locations 4300 | -8/Materials | Identified exit to Storage 4437 | -8/Materials | Destroyed 7 combat bots 4676 | -8/Materials | Build established: Scavenger-Mutant 5809 | -8/Materials | Core integrity fell below 50% 5860 | -8/Materials | Lost 6 parts (4n1u1w) 5873 | -8/Materials | Found Prototype Device 6388 | -8/Materials | Entered Storage 7000 | -8/Storage | Build established: Mutant 7111 | -8/Storage | Assisted by bots powering up and referring to "LRC-V3" 7399 | -8/Storage | Build established: Commander-Mutant 7515 | -8/Storage | Discovered new exit (range 9) 7588 | -8/Storage | First assault squad dispatched 7634 | -8/Storage | Core integrity fell below 20% 7705 | -8/Storage | Destroyed 8 combat bots 7725 | -8/Storage | Build established: Mutant 7817 | -8/Storage | Entered Factory 7817 | -7/Factory | Evolved 2 slots: Utility x2 7818 | -7/Factory | Identified exit to Lower Caves 7818 | -7/Factory | Identified Exp. Sensor Array 7819 | -7/Factory | FarCom data flow suspended 8058 | -7/Factory | Identified Active Sensor Suite 9250 | -7/Factory | Cargo convoy interrupted 9292 | -7/Factory | Core integrity fell below 50% 9296 | -7/Factory | Self-destructed Last Messages --------------- 09288_ Penetrated by Slug. 09288_ Arm. Treads destroyed. 09288_ Rnf. Deuterium Engine destroyed. 09288_ Hvy. Missile Launcher destroyed. 09288_ Slug penetrates Wall. 09290_ Penetrated by Slug. 09290_ Knocked back. 09292_ U-05 Engineer lays Concrete. 09293_ System corrupted: Heat flow error (+265). 09293_ U-05 Engineer lays Concrete. 09293_ X-67 Chaingunner destroyed. 09293_ U-05 Engineer destroyed. 09293_ Seismic Detector destroyed. 09295_ R-06 Scavenger collects Imp. Deuterium Engine. 09295_ Penetrated by Slug. 09295_ Missile Launcher destroyed. 09296_ Penetrated by Slug. 09296_ Gauss Rifle blasted off. 09296_ K-01 Serf collects debris. 09296_ U-05 Engineer builds a Wall. Map ----- +----------------------------------------------------+ | ?????????????????????????????????????????????????? | | ?????????????????????????????????????????????????? | | ??????????????????????????????? ???????????????? | | ????????????????????????????? ???????????????? | | ????????????????????????????# ???????????????? | | ??????a?????????????????????# #??????????????? | | ????????????????????????????# ##############?? | | ????????????????????????????# # #?? | | ????????????????????????????# # ]#?? | | ????????????????????????????# # #?? | | ????????????????????????????# # #?? | | ?????????????????????? ?????# # #?? | | ?????????????????????# ?????# # ### | | ?????????????????????# ?????# # + | | ?????????????????????# ?????# # ### | | ?????????????????????# ?????# # ##? | | ?????????????????????# ?????# # ##? | | ?????????????????????# ?????# + ! #?? | | ??????A??????????##### ###### # #?? | | ??????????# ### ! ## ##############?? | | ?????????? ## #?# ##????? | | ????????? ## #?# #?????? | | ????????? H "" ## #?# """ #?????? | | ???????? T k%## #?# """ #?????? | | ???????? ! # #?# """ #?????? | | ???????? @ ;# #?# "" #?????? | | ???????? ! =%[ ;# #?# "" #?????? | | ???????????####### %! = [p # #?# /#?????? | | ?????????????????###=%|=%[*## #?# """ #?????? | | ?????????????????# !!%*!* #?# """ #?????? | | ?????????????????# % !h[= #?# """ ####### | | ?????????????????# p r =% ! #?# "" ## | | ?????????????????# #?# "" ##/ | | ?????????????????# % #?# ## | | ?????????????###### ! #####+##### """ | | ???????????? "" """ # """ | | ????????????? "" """ # """ | | ???????????? """ """ # "" | | ???????????? % + "" | | ??????????? # | | ??????????? # """ | | ??????????? # """ | | ?????????????#################/############ # """ | | ?????????????# [ #??# # # "" | | ?????????????# #??# """"" # # "" | | ?????????????# """ """ #??# """"" # # ?? | | ?????????????# """ """ #??# """ # # ?? | | ?????????????# """ """ #??#! # ####?? | | ?????????????# #??# ! # #????? | | ???????????# ] """ #??# ! # #????? | +----------------------------------------------------+ Best States ------------- Heat Dissipation 56 Energy Generation 16 Energy Capacity 290 Matter Stores 300 Matter Capacity 300 Sight Range 16 Robot Scan Range 20 Terrain Scan Density 10 Corruption Block 8 Armor Coverage 450 Resistance: KI 20 Evasion (%) 40 Targeting Accuracy 6 Armor Integrity Analysis 30 Recoil Reduction 4 Authchip Count 1 Item Schematics ----------------- Lrg. Storage Unit | -10/Materials | Hacked Graphene Brace | -7/Factory | Scanalyzed Hacking Suite | -7/Factory | Scanalyzed Imp. VTOL Module | -7/Factory | Scanalyzed Robot Schematics ------------------ None Fabricated ------------ Nothing Alien Tech Used ----------------- None Achievements -------------- None Challenges ------------ None Game ------ Seed FrostGravmagBarrier Manual? 0 Play Time 00:54:46 Cumulative 351.4 hours Start 2022.04.22 @ 13:44:27 End 2022.04.22 @ 15:09:34 Sessions 1 Manual Loads 0 Difficulty Rogue Special Mode None Game No. 512 Rogue 512 Adventurer 0 Explorer 0 Win Type - Total 6 Types 4/0/1/1/0/0/0/0/0 Lore% 82 Gallery% 84 Achievement% 66 Wizard Run 0 Options --------- ASCII 0 Keyboard 1 Movement Numpad Keybinds 0 Fullscreen 2 Font 24/Smallcaps Map View 76x50 Tactical HUD 1 Map Filters NONE Filters NONE Steam 1 RUN: 001187e3-8694-4b93-8bba-1b8d563f8a09